Cogmind - Beta 10.1 @@@ ROGUE MODE // 2020.09.22 @ 01:02:25 Player: AF_C2_5001 Result: Destroyed by G-67 Veteran with Electrolaser Performance ------------- Evolutions (3) 1500 Regions Visited (13) 2600 Robots Destroyed (138) 690 Value Destroyed (5055) 5055 Prototype IDs (15) 300 Alien Tech Used (0) 0 Bonus (2181) 2181 TOTAL SCORE: 12326 Bonus ------- High Alert Combat Kills 390 Follower Combat Kills 112 Entered Garrisons 400 Used RIF Installer 1000 Met Data Miner 300 Friendly Fire -21 Cogmind --------- Core Integrity 0/700 Matter 300/300 Energy 100/100 System Corruption 13% Temperature Cool (21) Movement Core (50) Location -6/Proximity Caves Parts ------- > --- POWER (1) -------- (None) > --- PROPULSION (3) --- (None) > --- UTILITY (7) ------ (None) > --- WEAPON (2) ------- (None) > --- INVENTORY (4) ---- Improved Deuterium Engine High-capacity Storage Unit High-capacity Storage Unit High-capacity Storage Unit Peak State ------------ > --- POWER ------------ Improved Deuterium Engine > --- PROPULSION ------- Aluminum Leg Carbon-fiber Leg Titanium Leg > --- UTILITY ---------- Improved Heat Sink High-capacity Storage Unit High-capacity Storage Unit Advanced Visual Processing Unit Targeting Computer Weapon Cycler Medium Reactive Plating > --- WEAPON ----------- EM Pulse Cannon Improved EM Pulse Cannon > --- INVENTORY -------- Improved Deuterium Engine Reinforced Deuterium Engine Compact Wheel Compact Wheel High-capacity Storage Unit High-capacity Storage Unit High-capacity Storage Unit High-capacity Storage Unit High-capacity Storage Unit Advanced Signal Interpreter Medium Reactive Plating Relay Coupler [NC] EM Pulse Cannon Ion Cannon Ion Cannon Ion Cannon Heavy Ion Cannon Heavy Ion Cannon Improved Grenade Launcher Remote Datajack [Rating: 40] Favorites ----------- Power Improved Deuterium Engine Engine Improved Deuterium Engine Power Core Micro Nuclear Core Propulsion Light Treads Treads Light Treads Leg Aluminum Leg Utility High-capacity Storage Unit Device Improved Heat Sink Storage High-capacity Storage Unit Processor Targeting Computer Protection Medium Reactive Plating Weapon Heavy Ion Cannon Energy Gun Medium Laser Energy Cannon Heavy Ion Cannon Ballistic Gun Heavy Battle Rifle Launcher Improved Grenade Launcher Slashing Weapon Axe Build | -11 -10 -10 -10 -9 -8 -8 -8 -8 -7 -7 -7 -7 -6 ------- Run | Scr Mat Min Exi Min Mat Gar Mat Gar Fac Low Low Dat Pro Slots Evolved 6 | . . . . . 4 . . . 2 . . . . Power . | . . . . . . . . . . . . . . Propulsion 1 | . . . . . 1 . . . . . . . . Utility 5 | . . . . . 3 . . . 2 . . . . Weapon . | . . . . . . . . . . . . . . Parts Attached 112 | 6 4 . 2 4 14 7 4 12 19 5 24 2 9 Power 10 | 1 . . . 1 1 . . 2 2 . 3 . . Engine 7 | 1 . . . . 1 . . 1 2 . 2 . . Core 3 | . . . . 1 . . . 1 . . 1 . . Reactor . | . . . . . . . . . . . . . . Propulsion 29 | 2 2 . . . 4 3 1 3 3 1 6 . 4 Treads 16 | . 2 . . . 4 3 1 3 . . 2 . 1 Leg 13 | 2 . . . . . . . . 3 1 4 . 3 Wheel . | . . . . . . . . . . . . . . Hover . | . . . . . . . . . . . . . . Flight . | . . . . . . . . . . . . . . Utility 31 | 1 1 . 2 . 4 4 1 3 6 1 8 . . Device 13 | . 1 . . . 2 1 1 1 4 1 2 . . Storage 4 | 1 . . 2 . . . . 1 . . . . . Processor 2 | . . . . . 1 . . . 1 . . . . Hackware . | . . . . . . . . . . . . . . Protection 12 | . . . . . 1 3 . 1 1 . 6 . . Artifact . | . . . . . . . . . . . . . . Weapon 42 | 2 1 . . 3 5 . 2 4 8 3 7 2 5 Energy Gun 7 | 2 1 . . 1 1 . . . . . . . 2 Energy Cannon 23 | . . . . 1 1 . 1 3 6 2 6 2 1 Ballistic Gun 4 | . . . . . 1 . . . 2 . . . 1 Ballistic Cannon . | . . . . . . . . . . . . . . Launcher 7 | . . . . 1 2 . 1 1 . 1 1 . . Special Weapon . | . . . . . . . . . . . . . . Impact Weapon . | . . . . . . . . . . . . . . Slashing Weapon 1 | . . . . . . . . . . . . . 1 Piercing Weapon . | . . . . . . . . . . . . . . Special Melee Weapon . | . . . . . . . . . . . . . . Unidentified Prototypes 1 | . . . . . 1 . . . . . . . . Parts Lost 55 | . 1 . . . 3 1 2 4 7 . 19 . 18 Power 4 | . . . . . . . . 1 . . 2 . 1 Propulsion 13 | . . . . . . . 1 . 2 . 4 . 6 Utility 18 | . . . . . 1 1 1 1 2 . 7 . 5 Weapon 20 | . 1 . . . 2 . . 2 3 . 6 . 6 Highest Loss Streak 14 | . 1 . . . 2 1 1 2 2 . 13 . 14 Average Slot Usage (%) 94 | . 97 100 100 100 91 99 96 96 95 100 82 84 92 Engine 7 | . 14 14 14 2 1 9 9 4 7 7 6 7 6 Core 1 | . . . . 11 7 . . 4 . . . . . Treads 16 | . 5 28 28 28 26 27 24 27 17 . 3 15 19 Leg 7 | . 22 . . . . . . . 4 23 14 7 1 Device 12 | . 11 14 14 14 14 12 14 16 13 15 6 15 13 Storage 13 | . 14 14 14 14 9 9 9 10 15 15 15 15 14 Processor 7 | . . . . . 8 9 9 9 13 15 8 7 6 Protection 6 | . . . . . 5 14 11 6 7 7 9 15 13 Energy Gun 6 | . 27 28 28 16 3 . . . . . . . 5 Energy Cannon 8 | . . . . 11 5 9 8 12 12 10 14 . 1 Ballistic Gun 2 | . . . . . 5 9 9 5 2 1 . . 5 Naked Turns 16 | . . . . . . . . . . . . . 16 Heaviest Build 122 | 12 13 13 41 48 58 58 59 108 113 109 122 105 105 Greatest Support 66 | 20 40 40 40 40 60 60 62 62 62 42 46 46 66 Greatest Overweight (x) 30 | . . . 1 1 1 . 1 1 4 2 30 2 2 Average Overweight (x) . | . . . . 1 . . . . 1 2 3 2 . Largest Inventory Capacity 20 | 6 6 6 12 12 12 12 12 20 20 20 20 20 20 Average Capacity 14 | 5 6 6 6 12 12 12 12 13 20 20 20 20 19 Most Carried 20 | 2 6 6 8 11 12 12 12 14 20 20 20 14 16 Average Carried 12 | 1 3 6 6 9 10 11 11 12 16 19 15 14 14 Final Capacity 20 | 6 6 6 12 12 12 12 12 20 20 20 20 20 4 Final Carried 20 | 2 6 6 8 11 12 12 12 14 20 20 14 14 4 Class Distribution -------------------- 43% | Mutant 38% | Hauler-Mutant 17% | Scavenger-Mutant Dominant Class ---------------- Mutant | -10/Materials Mutant | -10/Mines Mutant | -10/Exiles Mutant | -9/Mines Mutant | -8/Materials Scavenger-Mutant | -8/Garrison Mutant | -8/Materials Mutant | -8/Garrison Hauler-Mutant | -7/Factory Hauler-Mutant | -7/Lower Caves Hauler-Mutant | -7/Lower Caves Scavenger-Mutant | -7/Data Miner Scavenger-Mutant | -6/Proximity Caves Resources | -11 -10 -10 -10 -9 -8 -8 -8 -8 -7 -7 -7 -7 -6 ----------- Run | Scr Mat Min Exi Min Mat Gar Mat Gar Fac Low Low Dat Pro Matter Collected 1959 | 171 109 20 . 60 366 154 108 186 246 122 291 . 126 Remotely . | . . . . . . . . . . . . . . Salvage Created 4949 | . 356 79 . 14 410 600 258 657 1024 230 1007 . 314 Parts 243 | . 13 . . 4 42 28 10 30 57 11 38 . 10 Haulers Intercepted 1 | . . . . . . . . . 1 . . . . Recyclers Shooed 3 | . . . . . . . . . 3 . . . . Parts Field Recycled . | . . . . . . . . . . . . . . Retrieved Matter . | . . . . . . . . . . . . . . Parts Self-Destructed 35 | . . . . . . . . . . 3 20 . 12 Prevented 26 | . . . . . . . . . . 7 19 . . Kills | -11 -10 -10 -10 -9 -8 -8 -8 -8 -7 -7 -7 -7 -6 ------- Run | Scr Mat Min Exi Min Mat Gar Mat Gar Fac Low Low Dat Pro Combat Hostiles Destroyed 109 | . 7 2 . 3 10 11 7 14 18 6 26 . 5 Guns 23 | . 5 1 . . 1 5 2 6 . . . . 3 Cannons 48 | . . . . . 1 6 2 8 13 . 16 . 2 AOE 33 | . 2 . . 3 8 . 3 . 5 4 8 . . Classes Destroyed 14 | . 4 . . . 6 . . . 3 . 1 . . Worker 7 | . . . . . 2 . . . 5 . . . . Builder 9 | . 1 . . . 4 . . . 4 . . . . Tunneler 3 | . . . . . 2 . . . 1 . . . . Hauler 1 | . . . . . . . . . 1 . . . . Recycler 4 | . 1 . . . 1 . . . 2 . . . . Operator 1 | . . . . . 1 . . . . . . . . Watcher 3 | . . . . . 3 . . . . . . . . Swarmer 30 | . 3 . . 3 3 . . 3 5 3 10 . . Grunt 48 | . 4 2 . . 3 6 7 6 5 2 11 . 2 Brawler 4 | . . . . . . . . . 1 . 1 . 2 Duelist 4 | . . . . . . . . . . . 3 . 1 Sentry 15 | . . . . . 3 5 . 4 1 1 1 . . Hunter 6 | . . . . . 1 . . 1 4 . . . . Programmer 2 | . . . . . . . . . 2 . . . . Decomposer 1 | . . . . . . . . . . 1 . . . Best Kill Streak 20 | . 3 2 . 3 20 4 4 5 7 3 8 . 2 Combat Bots Only 8 | . 3 2 . 3 5 4 4 5 5 3 8 . 2 Max Kills in Single Turn 3 | . 2 1 . 3 3 1 1 1 3 2 2 . 1 Gunslinging . | . . . . . . . . . . . . . . Exploded 3 | . 2 . . 3 3 . 1 . 2 2 2 . . Melee . | . . . . . . . . . . . . . . Uniques/NPCs Destroyed . | . . . . . . . . . . . . . . Combat | -11 -10 -10 -10 -9 -8 -8 -8 -8 -7 -7 -7 -7 -6 -------- Run | Scr Mat Min Exi Min Mat Gar Mat Gar Fac Low Low Dat Pro Damage Taken 8075 | . 264 79 . 180 454 497 448 568 1140 193 2406 . 1846 Core 1134 | . 77 45 . . 51 37 86 127 78 . 169 . 464 Absorbed by Shields 592 | . . . . . 75 99 42 166 81 . . . 129 Core Remaining (%) 65 | 100 . . . 51 . . . 45 . . . . . Volleys Fired 280 | . 32 6 . 4 28 28 19 33 50 8 56 . 16 Largest 2 | . 2 2 . 2 2 2 2 2 2 2 2 . 2 Hottest 132 | . 90 90 . 115 101 101 101 101 130 132 132 . 120 Shots Fired 501 | . 62 12 . 7 33 56 33 62 95 13 98 . 30 Gun 209 | . 62 12 . 3 8 28 14 33 28 . . . 21 Cannon 253 | . . . . 3 2 28 14 29 67 10 91 . 9 Launcher 39 | . . . . 1 23 . 5 . . 3 7 . . Special . | . . . . . . . . . . . . . . Kinetic 119 | . . . . . 5 28 14 33 28 . . . 11 Thermal 244 | . 50 12 . 6 5 28 14 29 51 . 30 . 19 Explosive 39 | . . . . 1 23 . 5 . . 3 7 . . Electromagnetic 99 | . 12 . . . . . . . 16 10 61 . . Robot Hit Streak 30 | . 5 12 . 3 5 11 12 30 16 10 20 . 11 Robot Miss Streak 5 | . 4 1 . 2 1 2 2 4 3 1 5 . 1 Penetration Max 1 | . . . . . . . . . . . . . 1 Secondary Targets 2 | . 1 1 . . . . . . . . . . . Max Gunslinging Chain 1 | . 1 1 . . . . . . . . . . . Shots Hit Robots 347 | . 36 11 . 3 16 36 24 46 66 12 73 . 24 Core Hits 224 | . 16 4 . 3 42 18 16 19 42 8 45 . 11 Critical Hits 13 | . . . . . 1 4 2 3 2 . . . 1 Critical Kills 6 | . . . . . 1 3 2 . . . . . . Critical Parts Destroyed 6 | . . . . . . 1 . 3 1 . . . 1 Melee Attacks 2 | . . . . . . . . . . . . . 2 Impact . | . . . . . . . . . . . . . . Slashing 2 | . . . . . . . . . . . . . 2 Piercing . | . . . . . . . . . . . . . . Sneak Attacks . | . . . . . . . . . . . . . . Combat Hostiles . | . . . . . . . . . . . . . . Follow-up Attacks . | . . . . . . . . . . . . . . Damage Inflicted 13349 | . 544 131 . 191 1964 793 882 1190 3728 617 2740 . 569 Guns 2287 | . 479 131 . 26 86 342 162 457 256 . . . 348 Cannons 4995 | . . . . 28 42 451 226 725 1505 259 1576 . 183 Explosions 5969 | . 65 . . 137 1814 . 492 . 1965 358 1138 . . Melee 29 | . . . . . . . . . . . . . 29 Ramming 69 | . . . . . 22 . 2 8 2 . 26 . 9 Kinetic 1520 | . . . . . 73 342 162 457 256 . . . 230 Thermal 5919 | . 419 131 . 54 514 451 226 725 2574 . 524 . 301 Explosive 4083 | . . . . 137 1355 . 492 . 696 358 1045 . . Electromagnetic 1729 | . 125 . . . . . . . 200 259 1145 . . Impact . | . . . . . . . . . . . . . . Slashing 29 | . . . . . . . . . . . . . 29 Piercing . | . . . . . . . . . . . . . . Highest Corruption 13 | . . . . . . . . . 2 2 13 13 13 Average Corruption 6 | . . . . . . . . . 1 2 10 13 13 Corruption Purged . | . . . . . . . . . . . . . . Effects 100 | . . . . . . . . . 8 6 61 8 17 Message Errors 21 | . . . . . . . . . 1 2 14 1 3 Matter Fused 11 | . . . . . . . . . . . 6 2 3 Heat Flow Errors 8 | . . . . . . . . . 2 . 5 1 . Energy Discharges 8 | . . . . . . . . . 1 1 3 1 2 Parts Rejected 2 | . . . . . . . . . . . 2 . . Data Loss (minor) 13 | . . . . . . . . . 2 2 7 1 1 Data Loss (major) 2 | . . . . . . . . . . . 1 1 . Misfires 6 | . . . . . . . . . . . 5 . 1 Alerts 3 | . . . . . . . . . . . 2 . 1 Misdirections 9 | . . . . . . . . . . . 4 1 4 Targeting Errors 11 | . . . . . . . . . 2 1 7 . 1 Weapon Failures 6 | . . . . . . . . . . . 5 . 1 Overload Shots . | . . . . . . . . . . . . . . Overflow Damage 732 | . 25 . . . 169 . 15 18 445 34 26 . . Projectiles 121 | . . . . . . . . 18 46 34 23 . . Explosions 611 | . 25 . . . 169 . 15 . 399 . 3 . . Melee . | . . . . . . . . . . . . . . Knockbacks . | . . . . . . . . . . . . . . Impact . | . . . . . . . . . . . . . . Kinetic . | . . . . . . . . . . . . . . Secondary . | . . . . . . . . . . . . . . Self-Inflicted Damage 558 | . 35 . . 17 46 . 120 . 175 36 125 . 4 Shots 17 | . 1 . . 1 3 . 5 . 2 2 3 . . Rammed 12 | . . . . . 3 . 1 2 1 . 2 . 3 Targets Rammed 13 | . . . . . 3 . 1 2 1 . 3 . 3 Kicked 1 | . . . . . . . . . . . 1 . . Crushed . | . . . . . . . . . . . . . . Highest Temperature 250 | . 117 7 . 36 33 84 14 17 245 138 250 147 85 Average Temperature 51 | . 50 3 . 16 13 27 7 3 51 65 76 86 25 Received Heat Transfer 1957 | . 99 45 . . 117 225 170 236 175 54 468 . 368 Effects 1 | . . . . . . . . . . . 1 . . Energy Bleed 1 | . . . . . . . . . . . 1 . . Siege Activations . | . . . . . . . . . . . . . . Robots Corrupted 4 | . . . . . . . . . . 2 2 . . Combat Hostiles 4 | . . . . . . . . . . 2 2 . . Parts Fried 8 | . . . . . . . . . . 1 7 . . Impact Corruptions . | . . . . . . . . . . . . . . Robots Melted 1 | . . 1 . . . . . . . . . . . Combat Hostiles 1 | . . 1 . . . . . . . . . . . Parts Melted 10 | . . 1 . . . 2 . 1 3 . 3 . . Heat Transferred 7801 | . 1018 335 . 111 411 697 407 999 2539 . 766 . 518 Parts Sabotaged . | . . . . . . . . . . . . . . Parts Stolen . | . . . . . . . . . . . . . . Parts Stripped . | . . . . . . . . . . . . . . Power Chain Reactions 2 | . 1 . . . . . . . . . 1 . . Missiles Intercepted . | . . . . . . . . . . . . . . Alert | -11 -10 -10 -10 -9 -8 -8 -8 -8 -7 -7 -7 -7 -6 ------- Run | Scr Mat Min Exi Min Mat Gar Mat Gar Fac Low Low Dat Pro Peak Influence 709 | . 200 50 . 70 654 596 576 670 709 . . . . Initial 374 | . . . . . 27 296 290 374 351 . . . . Average 315 | . 65 46 . 3 432 486 419 570 318 . . . . Maximum Alert Level 3 | . 1 . . . 2 2 2 2 3 . . . . Low Security (%) 35 | 100 99 100 . 100 17 . . . 19 . . . . Level 1 27 | . . . . . 9 34 34 10 65 . . . . Level 2 36 | . . . . . 73 65 65 89 10 . . . . Level 3 1 | . . . . . . . . . 4 . . . . Level 4 . | . . . . . . . . . . . . . . Level 5 . | . . . . . . . . . . . . . . High Security . | . . . . . . . . . . . . . . Max Security . | . . . . . . . . . . . . . . Squads Dispatched 16 | . 1 . . 1 4 . 3 . 5 . 1 . 1 Investigation 4 | . . . . 1 . . 1 . 2 . . . . Extermination 1 | . . . . . . . . . 1 . . . . Reinforcement 6 | . 1 . . . 3 . . . 2 . . . . Assault 3 | . . . . . 1 . . . . . 1 . 1 Garrison 2 | . . . . . . . 2 . . . . . . Intercept . | . . . . . . . . . . . . . . Construction Impeded 3 | . . . . . 1 . . . 2 . . . . Haulers Reinforced . | . . . . . . . . . . . . . . Stealth | -11 -10 -10 -10 -9 -8 -8 -8 -8 -7 -7 -7 -7 -6 --------- Run | Scr Mat Min Exi Min Mat Gar Mat Gar Fac Low Low Dat Pro Distress Signals 7 | . 1 . . . . . 2 . 4 . . . . Communications Jammed . | . . . . . . . . . . . . . . Distress Signals . | . . . . . . . . . . . . . . Times Spotted 172 | . 14 2 . 3 22 17 12 16 33 6 30 . 17 Peak Tracking Total 9 | . 4 2 . 3 6 6 6 5 6 3 8 . 9 Tactical Retreats 16 | . . . . . 1 1 2 1 8 . 3 . . Traps | -11 -10 -10 -10 -9 -8 -8 -8 -8 -7 -7 -7 -7 -6 ------- Run | Scr Mat Min Exi Min Mat Gar Mat Gar Fac Low Low Dat Pro Traps Triggered 3 | . . . . . . 2 . . 1 . . . . Indirectly . | . . . . . . . . . . . . . . Trap Hack Attempts . | . . . . . . . . . . . . . . Triggered . | . . . . . . . . . . . . . . Disarmed . | . . . . . . . . . . . . . . Reprogrammed . | . . . . . . . . . . . . . . Reused . | . . . . . . . . . . . . . . Traps Extracted . | . . . . . . . . . . . . . . Installed . | . . . . . . . . . . . . . . Triggered 1 | . . . . . . . . . . . 1 . . Machines | -11 -10 -10 -10 -9 -8 -8 -8 -8 -7 -7 -7 -7 -6 ---------- Run | Scr Mat Min Exi Min Mat Gar Mat Gar Fac Low Low Dat Pro Machines Disabled 30 | . . . . . 6 . . 1 21 . 2 . . Max in Single Turn 6 | . . . . . 6 . . 1 5 . 1 . . Garrison Access 1 | . . . . . . . . . 1 . . . . Garrison Relay 1 | . . . . . . . . 1 . . . . . Machines Sabotaged . | . . . . . . . . . . . . . . Garrisons Compromised . | . . . . . . . . . . . . . . Overloaded Fab Kills . | . . . . . . . . . . . . . . Fab Network Shutdowns . | . . . . . . . . . . . . . . Hacking | -11 -10 -10 -10 -9 -8 -8 -8 -8 -7 -7 -7 -7 -6 --------- Run | Scr Mat Min Exi Min Mat Gar Mat Gar Fac Low Low Dat Pro Machines Accessed 24 | . 2 . 2 1 1 . 4 . 9 1 . 4 . Terminals 13 | . 2 . . . . . 3 . 8 . . . . Fabricators . | . . . . . . . . . . . . . . Repair Stations . | . . . . . . . . . . . . . . Recycling Units . | . . . . . . . . . . . . . . Scanalyzers . | . . . . . . . . . . . . . . Garrison Access 3 | . . . . . 1 . 1 . 1 . . . . Total Hacks 97 | . 5 . 24 1 4 . 12 . 23 1 . 27 . Successful 75 | . 3 . 24 1 2 . 7 . 10 1 . 27 . Failed 22 | . 2 . . . 2 . 5 . 13 . . . . Catastrophic 3 | . . . . . . . 1 . 2 . . . . Database Lockouts . | . . . . . . . . . . . . . . Manual 22 | . 5 . 4 . 2 . 11 . . . . . . Terminals 37 | . 5 . . . . . 10 . 22 . . . . Fabricators . | . . . . . . . . . . . . . . Repair Stations . | . . . . . . . . . . . . . . Recycling Units . | . . . . . . . . . . . . . . Scanalyzers . | . . . . . . . . . . . . . . Garrison Access 7 | . . . . . 4 . 2 . 1 . . . . Terminal Hacks 66 | . 2 . 24 1 . . 2 . 9 1 . 27 . Record 37 | . . . 24 . . . . . 1 1 . 11 . Part Schematic 9 | . 1 . . . . . 1 . . . . 7 . Robot Schematic 6 | . . . . . . . . . . . . 6 . Prototype ID Bank 4 | . . . . . . . . . 1 . . 3 . Open Door 1 | . . . . 1 . . . . . . . . . Branch Access Points 2 | . 1 . . . . . . . 1 . . . . Emergency Access Points 1 | . . . . . . . . . 1 . . . . Unreport Threat 2 | . . . . . . . . . 2 . . . . Locate Traps 2 | . . . . . . . . . 2 . . . . Zone Layout 2 | . . . . . . . 1 . 1 . . . . Fabricator Hacks . | . . . . . . . . . . . . . . Repair Station Hacks . | . . . . . . . . . . . . . . Recycling Unit Hacks . | . . . . . . . . . . . . . . Scanalyzer . | . . . . . . . . . . . . . . Garrison Access Hacks 3 | . . . . . 1 . 1 . 1 . . . . Unlock Access 2 | . . . . . 1 . 1 . . . . . . Seal Access 1 | . . . . . . . . . 1 . . . . Unauthorized Hacks 6 | . 1 . . . 1 . 4 . . . . . . Terminals 4 | . 1 . . . . . 3 . . . . . . Track 2 | . 1 . . . . . 1 . . . . . . Botnet 1 | . . . . . . . 1 . . . . . . Operators 1 | . . . . . . . 1 . . . . . . Fabricators . | . . . . . . . . . . . . . . Repair Stations . | . . . . . . . . . . . . . . Recycling Units . | . . . . . . . . . . . . . . Scanalyzers . | . . . . . . . . . . . . . . Garrison Access 2 | . . . . . 1 . 1 . . . . . . Reprogram 2 | . . . . . 1 . 1 . . . . . . Data Cores Recovered . | . . . . . . . . . . . . . . Used . | . . . . . . . . . . . . . . Hacking Detections 15 | . 2 . . . 1 . 4 . 8 . . . . Full Trace Events 3 | . . . . . . . 1 . 2 . . . . Feedback Events 1 | . . . . . . . . . 1 . . . . Corruption 1 | . . . . . . . . . 1 . . . . Feedback Blocked . | . . . . . . . . . . . . . . Robot Schematics Acquired 6 | . . . . . . . . . . . . 6 . Robots Built . | . . . . . . . . . . . . . . Matter . | . . . . . . . . . . . . . . Time . | . . . . . . . . . . . . . . Total Robot Build Rating . | . . . . . . . . . . . . . . Part Schematics Acquired 9 | . 1 . . . . . 1 . . . . 7 . Parts Built . | . . . . . . . . . . . . . . Matter . | . . . . . . . . . . . . . . Time . | . . . . . . . . . . . . . . Total Part Build Rating . | . . . . . . . . . . . . . . Parts Repaired . | . . . . . . . . . . . . . . Time . | . . . . . . . . . . . . . . Parts Recycled . | . . . . . . . . . . . . . . Recycled Matter . | . . . . . . . . . . . . . . Retrieved Matter . | . . . . . . . . . . . . . . Retrieved Components . | . . . . . . . . . . . . . . Parts Scanalyzed . | . . . . . . . . . . . . . . Part Schematics Acquired . | . . . . . . . . . . . . . . Parts Damaged . | . . . . . . . . . . . . . . Bothacking | -11 -10 -10 -10 -9 -8 -8 -8 -8 -7 -7 -7 -7 -6 ------------ Run | Scr Mat Min Exi Min Mat Gar Mat Gar Fac Low Low Dat Pro Used RIF Installer 2 | . . . . . . 1 . 1 . . . . . Zone Cloak 1 | . . . . . . . . 1 . . . . . Robots Hacked . | . . . . . . . . . . . . . . Non-combat . | . . . . . . . . . . . . . . Combat . | . . . . . . . . . . . . . . Robot Hacks Applied . | . . . . . . . . . . . . . . Relay Couplers Released 9 | . . . . . . . . 5 4 . . . . Machine Destruction 5 | . . . . . . . . 5 . . . . . Programmers 4 | . . . . . . . . . 4 . . . . Robots Rewired . | . . . . . . . . . . . . . . Allies Hacked . | . . . . . . . . . . . . . . Hacks Repelled . | . . . . . . . . . . . . . . Allies | -11 -10 -10 -10 -9 -8 -8 -8 -8 -7 -7 -7 -7 -6 -------- Run | Scr Mat Min Exi Min Mat Gar Mat Gar Fac Low Low Dat Pro Total Allies 6 | . . . . . 3 . 2 . . . . . 1 Largest Group 3 | . . . . . 3 2 2 2 . . . . 1 Highest-Rated Group 94 | . . . . . 48 32 10 10 . . . . 94 Highest-Rated Ally 94 | . . . . . 16 16 5 5 . . . . 94 Total Orders . | . . . . . . . . . . . . . . Ally Attacks 36 | . . . . . 9 8 . 11 . . . . 8 Total Damage 521 | . . . . . 102 105 . 82 . . . . 232 Kills 4 | . . . . . 1 . . . . . . . 3 Allies Corrupted . | . . . . . . . . . . . . . . Allies Melted . | . . . . . . . . . . . . . . Intel | -11 -10 -10 -10 -9 -8 -8 -8 -8 -7 -7 -7 -7 -6 ------- Run | Scr Mat Min Exi Min Mat Gar Mat Gar Fac Low Low Dat Pro Robot Analysis Total . | . . . . . . . . . . . . . . Derelict Logs Recovered 3 | . . . . 1 . . . . . 2 . . . Drone Launches . | . . . . . . . . . . . . . . Drone Recoveries . | . . . . . . . . . . . . . . Exploration | -11 -10 -10 -10 -9 -8 -8 -8 -8 -7 -7 -7 -7 -6 ------------- Run | Scr Mat Min Exi Min Mat Gar Mat Gar Fac Low Low Dat Pro Turns Passed 7284 | 67 571 134 677 430 414 393 315 713 1207 661 1178 184 340 Spaces Moved 3538 | 50 352 73 415 226 198 180 146 353 558 338 409 91 149 Core 41 | 4 . . . . . . . . . . 10 . 27 Treads 2439 | . 58 73 415 226 198 180 146 353 463 . 117 91 119 Legs 1058 | 46 294 . . . . . . . 95 338 282 . 3 Wheels . | . . . . . . . . . . . . . . Hover . | . . . . . . . . . . . . . . Flight . | . . . . . . . . . . . . . . Fastest Speed 50 | 50 120 160 160 180 160 160 155 155 175 183 180 200 50 Average Speed 172 | 114 126 160 161 180 161 160 164 159 178 183 233 200 156 Slowest Speed 1550 | 120 160 160 180 180 180 160 180 175 225 183 1550 200 200 Overloaded Moves . | . . . . . . . . . . . . . . Propulsion Burnouts . | . . . . . . . . . . . . . . Robots Hopped . | . . . . . . . . . . . . . . Cave-ins Triggered . | . . . . . . . . . . . . . . Exploration Rate (%) 41 | 6 66 22 87 58 26 31 13 55 17 53 54 68 28 Regions Visited 13 Branch Regions 7 Pre-discovered Areas 2 | . . . 1 . . . . . . . . 1 . Known Exits Taken 4 | . 1 . . . 1 . 1 . 1 . . . . Unknown Exits Taken 7 | 1 . 1 1 1 . . . . . 1 1 1 . Scrap Searched 14 | . . . . 1 . . . . . 9 3 . 1 Spaces Dug 18 | . . . . . 1 . 17 . . . . . . Terrain Destroyed 363 | . 5 . . 12 129 . 45 . 100 19 50 . 3 Melee . | . . . . . . . . . . . . . . Projectile 14 | . . . . 2 1 . 3 . . . 5 . 3 AOE 349 | . 5 . . 10 128 . 42 . 100 19 45 . . Terrain Rammed . | . . . . . . . . . . . . . . Walls Destroyed . | . . . . . . . . . . . . . . Machines Disabled . | . . . . . . . . . . . . . . Actions | -11 -10 -10 -10 -9 -8 -8 -8 -8 -7 -7 -7 -7 -6 --------- Run | Scr Mat Min Exi Min Mat Gar Mat Gar Fac Low Low Dat Pro Total 4242 | 57 415 78 422 242 258 232 186 440 692 373 533 94 220 Wait 194 | . 21 . . 2 . 11 16 28 37 11 32 . 36 Move 3525 | 49 351 72 414 225 197 179 145 352 557 337 408 90 149 Hop . | . . . . . . . . . . . . . . Pick Up 70 | 2 5 . 4 4 9 1 1 6 19 5 9 . 5 Fast Attach 37 | 6 3 . 2 2 3 1 1 4 3 . 8 2 2 Attach 42 | . 1 . . . 6 1 1 3 9 1 14 . 6 Detach 1 | . . . . . 1 . . . . . . . . Swap 33 | . . . . 2 5 5 2 5 7 4 2 . 1 Drop 43 | . 2 . 2 3 6 6 . 7 7 7 1 2 . Fire 280 | . 32 6 . 4 28 28 19 33 50 8 56 . 16 Melee 2 | . . . . . . . . . . . . . 2 Ram 3 | . . . . . . . . . . . . . 3 Kick 3 | . . . . . . . . . . . 3 . . Crush 7 | . . . . . 3 . 1 2 1 . . . . Escape Stasis 2 | . . . . . . . . . 2 . . . . Rewire . | . . . . . . . . . . . . . . Trap . | . . . . . . . . . . . . . . Miscellaneous . | . . . . . . . . . . . . . . Route ------- -11/Scrapyard -10/Materials (discovered 3 exits: [*Mat x2] / *Min) -10/Mines (discovered 2 exits: [*Mat] / *Exi) -10/Exiles -9/Mines -8/Materials (discovered 3 exits: *Fac / [*Sto] / Gar) -8/Garrison -8/Materials -8/Garrison (discovered 2 exits: *Fac x2) -7/Factory (discovered 2 exits: *Low x2) -7/Lower Caves (discovered 2 exits: [*Low] / [*Zio]) -7/Lower Caves (discovered 2 exits: [*Fac] / *Dat) -7/Data Miner -6/Proximity Caves History --------- Turn | Location | Event 6 | -11/Scrapyard | Discovered new exit (range 15) 68 | -11/Scrapyard | Entered Materials 236 | -10/Materials | Discovered new exit (range 15) 311 | -10/Materials | Build established: Mutant 400 | -10/Materials | Discovered new exit (range 13) 404 | -10/Materials | Identified exit to Mines 639 | -10/Materials | Entered Mines 704 | -10/Mines | Discovered new exit (range 8) 765 | -10/Mines | Deemed a non-threat by the Exiles lab entrance 766 | -10/Mines | Discovered new exit (range 5) 773 | -10/Mines | Entered Exiles 813 | -10/Exiles | Met 8R-AWN 839 | -10/Exiles | Met EX-HEX 884 | -10/Exiles | Met EX-BIN 1021 | -10/Exiles | Met EX-DEC 1028 | -10/Exiles | Learned location of Zion (-6) 1091 | -10/Exiles | Visited The Gauntlet 1428 | -10/Exiles | Discovered new exit (range 14) 1450 | -10/Exiles | Entered Mines 1532 | -9/Mines | Met a Derelict shopkeep closing up shop 1704 | -9/Mines | Learned Materials garrison access intel 1715 | -9/Mines | A weapon hastily lodged in a ceiling crevice suddenly fell to the ground 1762 | -9/Mines | Received a Rocket Launcher from a helpful Derelict 1873 | -9/Mines | Discovered new exit (range 4) 1880 | -9/Mines | Entered Materials 1880 | -8/Materials | Evolved 4 slots: Propulsion x1, Utility x3 1881 | -8/Materials | Loaded intel: 1 garrison access location 2011 | -8/Materials | Discovered new exit (range 16) 2096 | -8/Materials | Identified exit to Garrison 2140 | -8/Materials | Discovered new exit (range 5) 2280 | -8/Materials | First assault squad dispatched 2294 | -8/Materials | Entered Garrison 2294 | -8/Garrison | Accompanied by 2 allies 2416 | -8/Garrison | Triggered checkpoint 2652 | -8/Garrison | Discovered new exit (range 13) 2680 | -8/Garrison | Installed Relay Interface Framework 2687 | -8/Garrison | Entered Materials 2753 | -8/Materials | Build established: Scavenger-Mutant 2887 | -8/Materials | Garrison activated, responded to threat 2961 | -8/Materials | Identified exit to Garrison 3002 | -8/Materials | Entered Garrison 3002 | -8/Garrison | Accompanied by 2 allies 3024 | -8/Garrison | Triggered checkpoint 3079 | -8/Garrison | Garrison Relay disabled 3089 | -8/Garrison | Build established: Mutant 3153 | -8/Garrison | Triggered checkpoint 3281 | -8/Garrison | Discovered new exit (range 10) 3411 | -8/Garrison | Core integrity fell below 50% 3684 | -8/Garrison | Discovered new exit (range 10) 3708 | -8/Garrison | Expanded RIF knowledge: Zone Cloak 3715 | -8/Garrison | Entered Factory 3715 | -7/Factory | Evolved 2 slots: Utility x2 3860 | -7/Factory | Build established: Hauler-Mutant 4043 | -7/Factory | Identified exit to Lower Caves 4922 | -7/Factory | Entered Lower Caves 5194 | -7/Lower Caves | Attracted the attention of an 0b10 checkpoint 5476 | -7/Lower Caves | Learned Factory stockpile data 5568 | -7/Lower Caves | Discovered new exit (range 7) 5580 | -7/Lower Caves | A Derelict revealed a hidden shortcut to a safe place 5583 | -7/Lower Caves | Entered another Lower Caves area 5680 | -7/Lower Caves | Discovered new exit (range 7) 5805 | -7/Lower Caves | System corruption reached 10% 5855 | -7/Lower Caves | Lost 5 parts (1n3u1w) 5868 | -7/Lower Caves | Encountered a Warlord checkpoint 6049 | -7/Lower Caves | Attracted the attention of an 0b10 outpost 6233 | -7/Lower Caves | Destroyed 8 combat bots 6238 | -7/Lower Caves | Lost 13 parts (2p3n3u5w) 6741 | -7/Lower Caves | Discovered new exit (range 6) 6761 | -7/Lower Caves | Entered Data Miner 6762 | -7/Data Miner | Discovered new exit (range 6) 6800 | -7/Data Miner | Met Data Miner 6834 | -7/Data Miner | Learned location of Section 7 (-3) 6834 | -7/Data Miner | Acquired the access code to Warlord's prototype stash 6859 | -7/Data Miner | Build established: Scavenger-Mutant 6868 | -7/Data Miner | Received God Mode back door access code from Data Miner 6945 | -7/Data Miner | Entered Proximity Caves 7009 | -6/Proximity Caves | Lost 4 parts (1n3w) 7238 | -6/Proximity Caves | Escorted by Enhanced Grunt 7238 | -6/Proximity Caves | Attracted the attention of an 0b10 outpost 7269 | -6/Proximity Caves | Core integrity fell below 50% 7269 | -6/Proximity Caves | Released all parts (3) 7285 | -6/Proximity Caves | Core integrity fell below 20% 7285 | -6/Proximity Caves | Destroyed by G-67 Veteran with Electrolaser Last Messages --------------- 07262_ Acquired Axe. 07262_ Carbon-fiber Leg destroyed. 07262_ Penetrated by Slug. 07265_ C-30 ARC bursts open, deploying its payload. 07265_ G-67 Veteran unfolds itself. 07265_ B-48 Gladiator unfolds itself. 07265_ G-50 Soldier unfolds itself. 07265_ I-36 Angel unfolds itself. 07265_ Penetrated by Slug. 07266_ Carbon-fiber Leg destroyed. 07266_ Adv. Heat Sink destroyed. 07266_ Rnf. Deuterium Engine destroyed. 07268_ Penetrated by Slug. 07268_ Core Shielding destroyed. 07269_ Released Hcp. Storage Unit. 07269_ Released Axe. 07271_ Slug penetrates Wall. 07281_ Slammed into S-27 Virus. 07284_ Slammed into L-41 Fighter. 07285_ Penetrated by Slug. Map ----- +----------------------------------------------------+ | ?????? ?????####????????????????????????????????? | | ?????# ???# ???????????????????????????????? | | ?? ## #?? ##?????????????????????????????? | | ??# #### ?????????????????????????????? | | ?## ## ??????????????????????????????? | | ?# ??????????????????????????????? | | ?# ???????????????????????????????? | | ## ???????????????????????????????? | | #? ????????????????????????????????? | | #??? ? #????????????????????????????????? | | #????# #??# ##???????????????????????????????? | | #???## #### ####????????????????????????????? | | #???# ## ## ##???????????????????????????? | | ???## #??????####?????????????????? | | #### ##????## #?????????????????? | | ##???# #?????????????????? | | ## ### #??## ##?????????????????? | | #### ###### ##?## ##??????????????????? | | ##?# ## #### #??# #???????????????????? | | #??# # #??# #???????????????????? | | #??# ####??##% #???????????????????? | | ####?# ## #??????##%#???????????????????? | | #????# ### #??????## ##??????????????????? | | ###????# ##?# #?????##s #??????????????????? | | ???????## ##?## #????## #??????????????????? | | ????????# #?## #?####@b####??????????????????? | | ????????## #### ### l g#?????????????????????? | | ?????????#### ## Y #?????????????????????? | | ??? ### ## g l#?????????????????????? | | ??? ## i#?????????????????????? | | ?????# ## ###???????????????????? | | ?????## =| ###?????????????????? | | ??????#### ####### !!! #?????????????????? | | ?????????# ?????# %*%!!/ #?????????????????? | | ?????????# ??????# %** "%" ??????????? | | ???????? ??? %% * ### ###???????????? | | ??????? ??# ### #?????????????????? | | ?????? ???#" # #??# ##?????????????????? | | ?????? ????#""""# ???###??????????????????? | | ?????????????####?## ???????????????????????? | | ??????????????????? ??????????????????????? | | ??????????????????#### #??????????????????????? | | ?????????????????????# ##??????????????????????? | | ????????????????????? ##???????????????????????? | | ????????????????????? #????????????????????????? | | ????????????????????? ##????????????????????????? | | ????????????????????? #?????????????????????????? | | ????????????????????? ??????????????????????????? | | ????????????????????? ??????????????????????????? | | ?????????????????????????????????????????????????? | +----------------------------------------------------+ Best States ------------- Heat Dissipation 53 Energy Generation 18 Energy Capacity 290 Matter Stores 300 Matter Capacity 300 Sight Range 20 Terrain Scan Density 10 Armor Coverage 825 Resistance: KI 30 Core Shielding 20 Weapon Cycling 15 Evasion (%) 50 Targeting Accuracy 5 Recoil Reduction 3 Item Schematics ----------------- Lrg. Storage Unit | -10/Materials | Hacked Hcp. Storage Unit | -8/Materials | Hacked Combat Drone Bay | -7/Data Miner | Free Lgt. Regenerative Plating | -7/Data Miner | Free Exp. Cesium-ion Thruster | -7/Data Miner | Free Triangulator | -7/Data Miner | Free Exp. Transmission Jammer | -7/Data Miner | Free Plasma Sword | -7/Data Miner | Free Kinetic Spear | -7/Data Miner | Free Robot Schematics ------------------ S-27 Virus | -7/Data Miner | Free G-50 Soldier | -7/Data Miner | Free L-41 Fighter | -7/Data Miner | Free P-70 Sage | -7/Data Miner | Free I-36 Angel | -7/Data Miner | Free I-47 Archangel | -7/Data Miner | Free Fabricated ------------ Nothing Alien Tech Used ----------------- None Achievements -------------- None Challenges ------------ None Game ------ Seed WaveMatterNanovents Manual? 0 Play Time 01:01:20 Cumulative 504.0 hours Start 2020.09.21 @ 22:27:17 End 2020.09.22 @ 01:02:25 Sessions 3 Manual Loads 0 Difficulty Rogue Special Mode None Game No. 320 Rogue 320 Adventurer 0 Explorer 0 Win Type - Total 34 Types 22/1/6/5/0/0/0/0/0 Lore% 86 Gallery% 88 Achievement% 77 Wizard Run 0 Options --------- ASCII 1 Keyboard 0 Movement Numpad Keybinds 0 Fullscreen 1 Font 20/SmallcapsGlow Map View 98x62 Tactical HUD 1 Map Filters NONE Filters NONE Steam 1 RUN: 8661fcad-02ed-479a-af8f-064597201686